bitfinex/quotes_BTCUSD_20240927
["timestamp","ask_amount","ask_price","bid_price","bid_amount"]
[1727426128262,0.37546379,65842.0,65841.0,0.1]
[1727426128432,0.37884926,65842.0,65841.0,0.1]
[1727426129282,0.37884926,65842.0,65836.0,0.14476963]
[1727426129447,0.37884926,65842.0,65838.0,0.1]
[1727426129869,0.37984926,65842.0,65838.0,0.1]
[1727426130083,0.36592271,65842.0,65838.0,0.1]
[1727426130290,0.23168817,65841.0,65838.0,0.1]
[1727426130519,0.36053724,65840.0,65838.0,0.1]
[1727426130738,0.00407168,65839.0,65838.0,0.1]
[1727426131012,0.36460892,65839.0,65838.0,0.1]
[1727426132283,0.36460892,65839.0,65838.0,0.102]
[1727426132503,0.36460892,65839.0,65838.0,0.103]
[1727426132766,0.36411354,65839.0,65838.0,0.103]
[1727426132987,0.36411354,65839.0,65838.0,0.1]
[1727426133194,0.35911354,65839.0,65838.0,0.102]
[1727426133406,0.36066729,65839.0,65838.0,0.102]
[1727426133610,0.36066729,65839.0,65838.0,0.14676963]
[1727426133840,0.36066729,65839.0,65838.0,0.1]
[1727426134053,0.36066729,65839.0,65838.0,0.101]
[1727426134272,0.36066729,65839.0,65838.0,0.14576963]
[1727426134481,0.36066729,65839.0,65838.0,0.14676963]
[1727426135218,0.3455534,65839.0,65838.0,0.14676963]
[1727426137160,0.3455534,65839.0,65838.0,0.14674276]
[1727426138242,0.3455534,65839.0,65838.0,0.102]
[1727426138450,0.3455534,65839.0,65838.0,0.002]
[1727426139691,0.3455534,65839.0,65838.0,0.001]
[1727426139925,0.3455534,65839.0,65837.0,0.04474685]
[1727426140152,0.3475534,65839.0,65837.0,0.04474685]
[1727426140359,0.3475534,65839.0,65838.0,0.04474685]
[1727426140998,0.3465534,65839.0,65838.0,0.04474685]
[1727426141437,0.3465534,65839.0,65837.0,0.1]
[1727426141438,0.3465534,65839.0,65837.0,0.04474685]
[1727426141666,0.33938859,65839.0,65837.0,0.04474685]
[1727426141907,0.33938859,65839.0,65836.0,0.04474685]
[1727426141908,0.15189,65837.0,65836.0,0.04474685]
[1727426142157,0.151921,65824.0,65821.0,0.04474685]
[1727426142380,0.48825322,65823.0,65819.0,0.03974685]
[1727426142707,0.151935,65818.0,65813.0,0.06715445]
[1727426142926,0.33633022,65817.0,65809.0,0.06715445]
[1727426143168,0.33633022,65817.0,65803.0,0.001656]
[1727426143169,0.33633022,65817.0,65810.0,0.15528794]
[1727426143402,0.91166706,65816.0,65810.0,0.15528794]
[1727426143639,0.33633022,65815.0,65810.0,0.15528794]
[1727426143867,0.33633022,65815.0,65808.0,0.00584298]
[1727426143868,0.48827222,65815.0,65808.0,0.00584298]
[1727426144089,0.33633022,65815.0,65808.0,0.16113092]
[1727426144321,0.33633022,65815.0,65806.0,0.06715445]
[1727426144322,0.303891,65813.0,65809.0,0.001]
[1727426144552,0.151952,65810.0,65809.0,0.001]
[1727426144779,0.49132559,65810.0,65809.0,0.001]
[1727426145019,0.48828222,65810.0,65809.0,0.001]
[1727426145262,0.33633022,65810.0,65809.0,0.001]
[1727426145486,0.33633022,65810.0,65809.0,0.05273486]
[1727426145713,0.33633022,65810.0,65807.0,0.06715445]
[1727426145938,0.33633022,65810.0,65807.0,0.15528794]
[1727426146164,0.34633022,65810.0,65809.0,0.001]
[1727426146404,0.33633022,65810.0,65808.0,0.151956]
[1727426146621,0.34933022,65810.0,65809.0,0.002]
[1727426147064,0.34233022,65810.0,65809.0,0.001]
[1727426147302,0.34233022,65810.0,65809.0,0.152954]
[1727426147303,0.33633022,65810.0,65809.0,0.152954]
[1727426147532,0.33633022,65810.0,65809.0,0.153954]
[1727426148638,0.33633022,65810.0,65809.0,0.152954]
[1727426148882,0.33633022,65810.0,65809.0,0.151954]
[1727426149109,0.33633022,65810.0,65809.0,0.152954]
[1727426149329,0.33733022,65810.0,65809.0,0.152954]
[1727426150750,0.33733022,65810.0,65809.0,0.37553183]
[1727426150977,0.33733022,65810.0,65809.0,0.42039176]
[1727426151200,0.33733022,65810.0,65809.0,0.30824194]
[1727426152338,0.33633022,65810.0,65809.0,0.30724194]
[1727426152787,0.33633022,65810.0,65809.0,0.30824194]
[1727426153239,0.33633022,65810.0,65809.0,0.31124194]
[1727426153689,0.33633022,65810.0,65809.0,0.31624194]
[1727426154179,0.33633022,65810.0,65809.0,0.30724194]
[1727426154869,0.33633022,65810.0,65809.0,0.419433]
[1727426155597,0.33633022,65810.0,65809.0,0.423433]
[1727426155819,0.33633022,65810.0,65809.0,0.40200687]
[1727426156068,0.33633022,65810.0,65809.0,0.07232967]
[1727426156069,0.48828222,65810.0,65809.0,0.07232967]
[1727426156301,0.151954,65809.0,65805.0,0.04489315]
[1727426156529,0.33433022,65808.0,65805.0,0.151964]
[1727426156786,0.33433022,65808.0,65805.0,0.303927]
[1727426157028,0.33433022,65808.0,65807.0,0.151959]
[1727426157265,0.33433022,65808.0,65804.0,0.04489315]
[1727426157498,0.33433022,65808.0,65804.0,0.34882115]
[1727426157758,0.33433022,65808.0,65807.0,0.151959]
[1727426158253,0.33433022,65808.0,65807.0,0.21928867]
[1727426158494,0.33433022,65808.0,65807.0,0.151959]
[1727426159710,0.33433022,65808.0,65807.0,0.19685129]
[1727426159953,0.33433022,65808.0,65807.0,0.2008521]
[1727426160190,0.33433022,65808.0,65807.0,0.158959]
[1727426160430,0.33433022,65808.0,65807.0,0.151959]
[1727426160669,0.33633022,65808.0,65807.0,0.151959]
[1727426160908,0.33833022,65808.0,65807.0,0.151959]
[1727426161151,0.33633022,65808.0,65805.0,0.0448931]
[1727426161379,0.33633022,65808.0,65804.0,0.303932]
[1727426161606,0.33633022,65808.0,65804.0,0.151966]
[1727426161906,0.33633022,65808.0,65803.0,0.0465491]
[1727426162132,0.33633022,65808.0,65806.0,0.151961]
[1727426162363,0.33633022,65808.0,65803.0,0.001656]
[1727426162529,0.33633022,65808.0,65804.0,0.151965]
[1727426162798,0.33433022,65808.0,65804.0,0.151965]
[1727426162920,0.33933022,65808.0,65804.0,0.151965]
[1727426163120,0.33533022,65808.0,65804.0,0.151965]
[1727426163348,0.33433022,65808.0,65804.0,0.151965]
[1727426163558,0.33633022,65808.0,65804.0,0.151965]
[1727426163758,0.33533022,65808.0,65804.0,0.151965]
[1727426164158,0.33733022,65808.0,65804.0,0.151965]
[1727426164432,0.33733022,65808.0,65806.0,0.0448931]
[1727426165073,0.151959,65807.0,65806.0,0.0448931]
[1727426165290,0.33433022,65807.0,65804.0,0.0448931]
[1727426165520,0.48629022,65807.0,65805.0,0.0448931]
[1727426166016,1.06676148,65806.0,65805.0,0.04498447]
[1727426166214,0.151964,65805.0,65804.0,0.04498447]
[1727426166419,0.48933759,65805.0,65804.0,0.04498447]
[1727426166639,0.48629422,65805.0,65804.0,0.06733382]
[1727426167314,0.33433022,65805.0,65803.0,0.001656]
[1727426167537,0.151966,65804.0,65803.0,0.001656]
[1727426167755,0.48629622,65804.0,65803.0,0.001656]
[1727426168404,0.33433022,65804.0,65803.0,0.06916348]
[1727426168659,0.33433022,65804.0,65803.0,0.001656]
[1727426168838,0.48629622,65804.0,65803.0,0.001656]
[1727426169038,0.64158416,65804.0,65803.0,0.001656]
[1727426169245,0.51261816,65804.0,65800.0,0.11251247]
[1727426169424,0.34548652,65801.0,65800.0,0.11251247]
[1727426169665,0.86010468,65801.0,65800.0,0.11251247]
[1727426169881,0.30399,65792.0,65781.0,0.152019]
[1727426170106,0.19351352,65787.0,65780.0,0.304042]
[1727426170315,0.33737359,65786.0,65784.0,0.11260009]
[1727426170558,0.00304337,65785.0,65784.0,0.11260009]
[1727426170777,0.33737359,65785.0,65784.0,0.11260009]
[1727426171107,0.33433022,65785.0,65784.0,0.11260009]
[1727426171598,0.33433022,65785.0,65784.0,0.04505378]
[1727426172072,0.33433022,65785.0,65783.0,0.21959367]
[1727426172321,0.33433022,65785.0,65784.0,0.04503321]
[1727426172555,0.33433022,65785.0,65782.0,0.06758067]
[1727426172556,0.152014,65783.0,65782.0,0.06758067]
[1727426172783,0.152014,65783.0,65779.0,0.11263446]
[1727426172784,0.152017,65782.0,65781.0,0.04502291]
[1727426173030,0.97318292,65782.0,65781.0,0.04502291]
[1727426173532,0.97318292,65782.0,65780.0,0.06758067]
[1727426173768,0.30730694,65781.0,65779.0,0.06751117]
[1727426174008,0.28931873,65780.0,65779.0,0.04501282]
[1727426174249,0.28931873,65780.0,65776.0,0.06751117]
[1727426174250,0.152028,65778.0,65776.0,0.06751117]
[1727426174453,0.00304337,65777.0,65776.0,0.06751117]
[1727426174739,0.2923621,65777.0,65776.0,0.06751117]
[1727426175013,0.2923621,65777.0,65775.0,0.001656]
[1727426175014,0.175031,65776.0,65775.0,0.001656]
[1727426175260,0.6191216,65776.0,65775.0,0.001656]
[1727426175500,0.92300587,65776.0,65775.0,0.001656]
[1727426176192,0.92300587,65776.0,65765.0,0.06595817]
[1727426176193,0.152055,65766.0,65765.0,0.06595817]
[1727426176418,0.2904357,65765.0,65762.0,0.09010757]
[1727426176657,0.19921116,65764.0,65762.0,0.08994792]
[1727426176876,0.19921116,65764.0,65763.0,0.152061]
[1727426177548,0.19921116,65764.0,65763.0,0.69778464]
[1727426177767,0.19921116,65764.0,65763.0,0.70357493]
[1727426178219,0.19921116,65764.0,65763.0,0.25985129]
[1727426178446,0.19921116,65764.0,65763.0,0.252061]
[1727426178920,0.20021116,65764.0,65763.0,0.258061]
[1727426179137,0.19921116,65764.0,65763.0,0.38684784]
[1727426179360,0.20021116,65764.0,65763.0,0.39584784]
[1727426179560,0.20021116,65764.0,65763.0,0.261061]
[1727426179820,0.20121116,65764.0,65763.0,0.270061]
[1727426180786,0.20121116,65764.0,65763.0,0.42534894]
[1727426181276,0.20121116,65764.0,65763.0,0.56013316]
[1727426181501,0.20121116,65764.0,65763.0,0.42534894]
[1727426181717,0.20121116,65764.0,65763.0,0.56015261]
[1727426181938,0.20121116,65764.0,65763.0,0.42534894]
[1727426182124,0.20121116,65764.0,65763.0,0.55280608]
[1727426182125,0.20021116,65764.0,65763.0,0.55280608]
[1727426182357,0.19921116,65764.0,65763.0,0.40900494]
[1727426182581,0.20103916,65764.0,65763.0,0.42300494]
[1727426182838,0.20103916,65764.0,65763.0,0.55783538]
[1727426183072,0.20103916,65764.0,65763.0,0.42300494]
[1727426183302,0.20203916,65764.0,65763.0,0.43200494]
[1727426183761,0.20103916,65764.0,65763.0,0.42300494]
[1727426183995,0.20003916,65764.0,65763.0,0.40900494]
[1727426184229,0.20003916,65764.0,65763.0,0.41200494]
[1727426184447,0.20003916,65764.0,65763.0,0.40900494]
[1727426184964,0.20003916,65764.0,65763.0,0.42300494]
[1727426185390,0.20103916,65764.0,65763.0,0.43700494]
[1727426186565,0.20103916,65764.0,65763.0,0.63614119]
[1727426186798,0.20103916,65764.0,65763.0,0.43700494]
[1727426188636,0.22802764,65776.0,65763.0,0.43700494]
[1727426188889,0.22802764,65776.0,65775.0,0.152033]
[1727426189094,0.22802764,65776.0,65775.0,0.26462568]
[1727426189252,0.68412764,65776.0,65775.0,0.26462568]
[1727426189452,0.68412764,65776.0,65764.0,0.15528794]
[1727426189453,0.304069,65775.0,65774.0,0.04504917]
[1727426189681,0.91524737,65775.0,65772.0,0.04504917]
[1727426189910,0.15507937,65774.0,65771.0,0.04504917]
[1727426190117,0.4561,65773.0,65770.0,0.04504917]
[1727426190378,0.4561,65773.0,65772.0,0.15204]
[1727426190577,0.4799366,65773.0,65772.0,0.15204]
[1727426190796,0.4561,65773.0,65772.0,0.15204]
[1727426191669,0.4561,65773.0,65772.0,0.21959683]
[1727426191876,0.4591,65773.0,65772.0,0.21959683]
[1727426192089,0.4561,65773.0,65772.0,0.15204]
[1727426192307,0.4611,65773.0,65772.0,0.15204]
[1727426192520,0.4611,65773.0,65772.0,0.24210085]
[1727426192764,0.4561,65773.0,65772.0,0.15204]
[1727426193181,0.4601,65773.0,65772.0,0.15204]
[1727426193598,0.4641,65773.0,65772.0,0.2420993]
[1727426194311,0.4641,65773.0,65772.0,0.15204]
[1727426194975,0.4641,65773.0,65772.0,0.24210186]
[1727426195178,0.4641,65773.0,65772.0,0.15204]
[1727426195391,0.456928,65773.0,65772.0,0.2421092]
[1727426195839,0.456928,65773.0,65772.0,0.2431092]
[1727426196045,0.456928,65773.0,65772.0,0.17217782]
[1727426199503,0.456928,65773.0,65772.0,0.28487114]
[1727426200465,0.456928,65773.0,65772.0,0.17217782]
[1727426200689,0.456928,65773.0,65772.0,0.23982552]
[1727426201609,0.456928,65773.0,65772.0,0.17217782]
[1727426201826,0.456928,65773.0,65772.0,0.23984432]
[1727426202081,0.456928,65773.0,65772.0,0.17217782]
[1727426202314,0.456928,65773.0,65772.0,0.23984375]
[1727426202545,0.456928,65773.0,65772.0,0.15304]
[1727426202772,0.456928,65773.0,65772.0,0.17224467]
[1727426203423,0.456928,65773.0,65772.0,0.17124467]
[1727426203859,0.462928,65773.0,65772.0,0.17124467]
[1727426204101,0.462928,65773.0,65772.0,0.23892476]
[1727426204102,0.459928,65773.0,65772.0,0.23892476]
[1727426204358,0.459928,65773.0,65772.0,0.21636962]
[1727426204571,0.462928,65773.0,65772.0,0.21972009]
[1727426204786,0.462928,65773.0,65772.0,0.23897942]
[1727426205010,0.462928,65773.0,65772.0,0.17126514]
[1727426205237,0.459928,65773.0,65772.0,0.17126514]
[1727426205455,0.459928,65773.0,65772.0,0.35395737]
[1727426205670,0.461928,65773.0,65772.0,0.17126514]
[1727426206367,0.459928,65773.0,65772.0,0.17126514]
[1727426206576,0.461928,65773.0,65772.0,0.28748974]
[1727426206809,0.461928,65773.0,65772.0,0.17115504]
[1727426207040,0.456928,65773.0,65772.0,0.17115504]
[1727426207255,0.459928,65773.0,65772.0,0.17115504]
[1727426207708,0.456928,65773.0,65772.0,0.17115504]
[1727426207960,0.456928,65773.0,65772.0,0.17515504]
[1727426208177,0.456928,65773.0,65772.0,0.17115504]
[1727426208619,0.456928,65773.0,65772.0,0.17515504]
[1727426209330,0.457928,65773.0,65772.0,0.18015504]
[1727426209827,0.456928,65773.0,65772.0,0.17115504]
[1727426210262,0.456928,65773.0,65772.0,0.17215504]
[1727426210721,0.456928,65773.0,65772.0,0.17115504]
[1727426210946,0.456928,65773.0,65772.0,0.17125798]
[1727426211176,0.456928,65773.0,65772.0,0.02421798]
[1727426211406,0.456928,65773.0,65772.0,0.31196548]
[1727426211629,0.456928,65773.0,65772.0,0.30796548]
[1727426211900,0.459928,65773.0,65772.0,0.30796548]
[1727426212149,0.456928,65773.0,65772.0,0.30796548]
[1727426212376,0.456928,65773.0,65772.0,0.01921798]
[1727426212607,0.459928,65773.0,65772.0,0.02021798]
[1727426212845,0.460928,65773.0,65772.0,0.01921798]
[1727426213107,0.463928,65773.0,65772.0,0.01921798]
[1727426213809,0.693666,65773.0,65772.0,0.11338766]
[1727426214052,0.693666,65773.0,65771.0,0.5907131]
[1727426214282,0.15508337,65772.0,65771.0,0.5907131]
[1727426214515,0.61118337,65772.0,65771.0,0.56803578]
[1727426214746,0.60814,65772.0,65771.0,0.56803578]
[1727426215623,0.60814,65772.0,65771.0,0.54535416]
[1727426216117,0.61114,65772.0,65771.0,0.54535416]
[1727426216561,0.80482816,65772.0,65771.0,0.54535416]
[1727426217265,0.9631161,65772.0,65771.0,0.54535416]
[1727426217519,1.1523161,65772.0,65771.0,0.5]
[1727426217995,1.22718276,65772.0,65771.0,0.44763307]
[1727426218236,0.177056,65765.0,65764.0,0.001656]
[1727426218478,0.79407547,65765.0,65764.0,0.001656]
[1727426218722,1.2471321,65765.0,65764.0,0.001656]
[1727426218946,1.2471321,65765.0,65746.0,0.001656]
[1727426218947,0.53465816,65759.0,65746.0,0.001656]
[1727426219175,0.6899461,65759.0,65746.0,0.001656]
[1727426219410,1.1460461,65759.0,65746.0,0.001656]
[1727426220106,0.42328616,65747.0,65746.0,0.001656]
[1727426220340,1.0346741,65747.0,65746.0,0.001656]
[1727426221986,1.0446741,65747.0,65746.0,0.002656]
[1727426222370,0.9015761,65747.0,65746.0,0.003656]
[1727426222603,1.0536741,65747.0,65746.0,0.003656]
[1727426222849,0.9015761,65747.0,65746.0,0.003656]
[1727426223062,0.85998594,65747.0,65746.0,0.003656]
[1727426223307,0.70788794,65747.0,65746.0,0.003656]
[1727426223514,0.85998594,65747.0,65746.0,0.003656]
[1727426223733,0.4751,65747.0,65746.0,0.155756]
[1727426224151,0.4751,65747.0,65746.0,0.003656]
[1727426225007,0.4751,65747.0,65746.0,0.155756]
[1727426225252,0.4751,65747.0,65746.0,0.003656]
[1727426226219,0.63038794,65747.0,65746.0,0.003656]
[1727426226688,0.78248594,65747.0,65746.0,0.003656]
[1727426227212,0.63038794,65747.0,65746.0,0.003656]
[1727426227445,0.4751,65747.0,65746.0,0.155756]
[1727426229523,0.4751,65747.0,65746.0,0.003656]
[1727426231146,0.63038794,65747.0,65746.0,0.003656]
[1727426231584,0.78248594,65747.0,65746.0,0.003656]
[1727426232039,1.0512741,65747.0,65746.0,0.003656]
[1727426232256,1.2341741,65747.0,65746.0,0.003656]
[1727426232508,1.2341741,65747.0,65741.0,0.001656]
[1727426232509,0.34579716,65742.0,65741.0,0.001656]
[1727426232722,1.0342851,65742.0,65741.0,0.001656]
[1727426233187,1.2401851,65742.0,65741.0,0.001656]
[1727426233419,0.154114,65740.0,65721.0,0.001656]
[1727426233651,1.12559,65740.0,65721.0,0.001656]
[1727426234546,0.45150716,65738.0,65721.0,0.001656]
[1727426234783,0.232856,65722.0,65721.0,0.001656]
[1727426235063,0.84728731,65722.0,65721.0,0.001656]
[1727426235268,0.84424394,65722.0,65721.0,0.001656]
[1727426235704,0.69208794,65722.0,65721.0,0.001656]
[1727426235923,0.69208794,65722.0,65721.0,0.153814]
[1727426235924,0.61138794,65722.0,65721.0,0.153814]
[1727426236142,0.4681,65722.0,65721.0,0.153814]
[1727426236369,0.4561,65722.0,65721.0,0.153814]
[1727426236600,0.4671,65722.0,65721.0,0.153814]
[1727426237818,0.4561,65722.0,65721.0,0.153814]
[1727426238044,0.78254394,65722.0,65721.0,0.002656]
[1727426238264,0.76954394,65722.0,65721.0,0.001656]
[1727426238745,0.77554394,65722.0,65721.0,0.002656]
[1727426238982,0.76954394,65722.0,65721.0,0.002656]
[1727426239212,0.87269928,65722.0,65721.0,0.002656]
[1727426239442,0.88469928,65722.0,65721.0,0.002656]
[1727426239879,0.88669928,65722.0,65721.0,0.002656]
[1727426240302,0.88469928,65722.0,65721.0,0.002656]
[1727426240866,0.87269928,65722.0,65721.0,0.002656]
[1727426241093,0.86669928,65722.0,65721.0,0.001656]
[1727426241323,0.88469928,65722.0,65721.0,0.001656]
[1727426241771,0.86669928,65722.0,65721.0,0.001656]
[1727426241995,0.87869928,65722.0,65721.0,0.001656]
[1727426242221,0.88969928,65722.0,65721.0,0.001656]
[1727426243836,0.88969928,65722.0,65721.0,0.153814]
[1727426243837,0.65824328,65722.0,65721.0,0.153814]
[1727426244052,0.65824328,65722.0,65721.0,0.001656]
[1727426244270,0.63438794,65722.0,65721.0,0.001656]
[1727426246152,0.4791,65722.0,65721.0,0.153814]
[1727426247260,0.78654394,65722.0,65721.0,0.001656]
[1727426248137,0.63438794,65722.0,65721.0,0.001656]
[1727426248347,0.78654394,65722.0,65721.0,0.001656]
[1727426248555,0.63438794,65722.0,65721.0,0.001656]
[1727426248788,0.65824214,65722.0,65721.0,0.001656]
[1727426248982,0.63438794,65722.0,65721.0,0.001656]
[1727426250087,0.78654394,65722.0,65721.0,0.001656]
[1727426250798,0.9802321,65722.0,65721.0,0.001656]
[1727426251747,0.9822321,65722.0,65721.0,0.001656]
[1727426252003,0.546195,65705.0,65693.0,0.001]
[1727426252233,1.15554643,65705.0,65702.0,0.23072884]
[1727426252421,1.15554643,65705.0,65702.0,0.00267]
[1727426252641,1.38360527,65705.0,65702.0,0.00267]
[1727426252860,1.15754643,65705.0,65702.0,0.00267]
[1727426253137,1.17941134,65705.0,65702.0,0.00267]
[1727426253594,1.15641134,65705.0,65702.0,0.00267]
[1727426254038,1.17941134,65705.0,65702.0,0.00267]
[1727426254480,1.19341134,65705.0,65702.0,0.00267]
[1727426254716,1.17941134,65705.0,65702.0,0.00267]
[1727426254933,1.19341134,65705.0,65702.0,0.00267]
[1727426255159,1.10741134,65705.0,65702.0,0.00267]
[1727426256507,0.88931134,65705.0,65702.0,0.00267]
[1727426256728,0.78954643,65705.0,65702.0,0.00267]
[1727426256946,0.79158294,65705.0,65702.0,0.00267]
[1727426257408,0.76358294,65705.0,65702.0,0.00267]
[1727426257621,0.77758294,65705.0,65702.0,0.00267]
[1727426258061,0.62538794,65705.0,65702.0,0.00267]
[1727426258363,0.61138794,65705.0,65702.0,0.00267]
[1727426258589,0.62538794,65705.0,65702.0,0.00267]
[1727426258829,0.63738794,65705.0,65702.0,0.00267]
[1727426259052,0.62338794,65705.0,65702.0,0.00267]
[1727426259269,0.62338794,65705.0,65704.0,0.153853]
[1727426259490,0.4681,65705.0,65704.0,0.001656]
[1727426260188,0.4681,65705.0,65704.0,0.153853]
[1727426260402,0.4681,65705.0,65704.0,0.001656]
[1727426260610,0.4671,65705.0,65704.0,0.001656]
[1727426261080,0.4621,65705.0,65704.0,0.001656]
[1727426261298,0.48596006,65705.0,65704.0,0.001656]
[1727426261527,0.49096006,65705.0,65704.0,0.001656]
[1727426262204,0.48596006,65705.0,65704.0,0.001656]
[1727426262427,0.792443,65705.0,65704.0,0.001656]
[1727426262644,0.646248,65705.0,65704.0,0.001656]
[1727426263076,0.798443,65705.0,65704.0,0.001656]
[1727426263512,0.646248,65705.0,65704.0,0.001656]
[1727426263727,0.77458294,65705.0,65704.0,0.001656]
[1727426265327,0.79844348,65705.0,65704.0,0.001656]
[1727426265789,0.64624848,65705.0,65704.0,0.001656]
[1727426267083,0.79844348,65705.0,65704.0,0.001656]
[1727426267318,0.49096054,65705.0,65704.0,0.001656]
[1727426267545,0.49096054,65705.0,65704.0,0.153853]
[1727426267763,0.49096054,65705.0,65704.0,0.001656]
[1727426267764,0.79844348,65705.0,65704.0,0.001656]
[1727426268000,0.79344348,65705.0,65704.0,0.001656]
[1727426268456,0.79144348,65705.0,65704.0,0.001656]
[1727426268867,0.79544348,65705.0,65704.0,0.001656]
[1727426269106,0.79144348,65705.0,65704.0,0.001656]
[1727426269761,0.76758294,65705.0,65704.0,0.001656]
[1727426270419,0.76358294,65705.0,65704.0,0.001656]
[1727426270636,0.77458294,65705.0,65704.0,0.001656]
[1727426270860,0.76858294,65705.0,65704.0,0.001656]
[1727426271386,0.76758294,65705.0,65704.0,0.001656]
[1727426271599,0.76358294,65705.0,65704.0,0.001656]
[1727426272262,0.77258294,65705.0,65704.0,0.001656]
[1727426272468,0.76658294,65705.0,65704.0,0.001656]
[1727426272720,0.79044428,65705.0,65704.0,0.001656]
[1727426273193,0.79127328,65705.0,65704.0,0.001656]
[1727426273757,0.78827328,65705.0,65704.0,0.001656]
[1727426273983,0.80227328,65705.0,65704.0,0.001656]
[1727426274221,0.79627328,65705.0,65704.0,0.001656]
[1727426274459,0.78827328,65705.0,65704.0,0.001656]
[1727426274692,0.81627328,65705.0,65704.0,0.001656]
[1727426274927,0.80227328,65705.0,65704.0,0.001656]
[1727426275170,0.78827328,65705.0,65704.0,0.001656]
[1727426275420,0.79727328,65705.0,65704.0,0.001656]
[1727426275621,0.79627328,65705.0,65704.0,0.001656]
[1727426275837,0.81027328,65705.0,65704.0,0.001656]
[1727426276054,0.78641194,65705.0,65704.0,0.00032413]
[1727426276983,0.9721001,65705.0,65704.0,0.00032413]
[1727426277168,0.9741001,65705.0,65704.0,0.00032413]
[1727426277389,0.9831001,65705.0,65704.0,0.00032413]
[1727426277855,0.9671001,65705.0,65704.0,0.00032413]
[1727426278063,0.9751001,65705.0,65704.0,0.00032413]
[1727426278272,0.9681001,65705.0,65704.0,0.00032413]
[1727426278577,0.9741001,65705.0,65704.0,0.00032413]
[1727426279039,0.9881001,65705.0,65704.0,0.00032413]
[1727426280139,1.15348816,65705.0,65704.0,0.00032413]
[1727426280355,0.9971001,65705.0,65704.0,0.00032413]
[1727426280590,1.03496472,65705.0,65704.0,0.00032413]
[1727426281048,1.02096472,65705.0,65704.0,0.00032413]
[1727426281315,1.03296472,65705.0,65704.0,0.00032413]
[1727426283788,0.83927656,65705.0,65704.0,0.00032413]
[1727426284098,0.81627656,65705.0,65704.0,0.00032413]
[1727426285536,0.50879362,65705.0,65704.0,0.15252113]
[1727426285755,0.484929,65705.0,65704.0,0.00032413]
[1727426286623,0.470929,65705.0,65704.0,0.15252113]
[1727426287046,0.484929,65705.0,65704.0,0.17197343]
[1727426287298,0.470929,65705.0,65704.0,0.17197343]
[1727426287515,0.459929,65705.0,65704.0,0.35307343]
[1727426287741,0.459929,65705.0,65704.0,0.53657343]
[1727426287961,0.456929,65705.0,65704.0,0.69186137]
[1727426288395,0.456929,65705.0,65704.0,0.69086137]
[1727426288632,0.456929,65705.0,65704.0,0.67140907]
[1727426288844,0.456929,65705.0,65704.0,0.69080401]
[1727426289108,0.257929,65705.0,65704.0,0.71780401]
[1727426289325,0.22805884,65721.0,65720.0,0.15216]
[1727426289729,0.68453884,65721.0,65720.0,0.15216]
[1727426289867,0.45648,65721.0,65720.0,0.23066]
[1727426290714,0.45648,65721.0,65720.0,0.23266]
[1727426291883,0.45648,65721.0,65720.0,0.23066]
[1727426292468,0.45748,65721.0,65720.0,0.23466]
[1727426292684,0.45748,65721.0,65720.0,0.23066]
[1727426292685,0.45648,65721.0,65720.0,0.23066]
[1727426293094,0.45748,65721.0,65720.0,0.23566]
[1727426293781,0.45748,65721.0,65720.0,0.23966]
[1727426294342,0.45748,65721.0,65720.0,0.23566]
[1727426294571,0.45848,65721.0,65720.0,0.23966]
[1727426296535,0.459309,65721.0,65720.0,0.23966]
[1727426300791,0.459309,65721.0,65720.0,0.16116]
[1727426301919,0.458309,65721.0,65720.0,0.15616]
[1727426302142,0.457309,65721.0,65720.0,0.15216]
[1727426303467,0.458309,65721.0,65720.0,0.15216]
[1727426304313,0.457309,65721.0,65720.0,0.15216]
[1727426304536,0.457309,65721.0,65720.0,0.34584816]
[1727426304758,0.457309,65721.0,65720.0,0.35184816]
[1727426305190,0.457309,65721.0,65720.0,0.34584816]
[1727426305408,0.458309,65721.0,65720.0,0.34984816]
[1727426305838,0.457309,65721.0,65720.0,0.34584816]
[1727426306061,0.458309,65721.0,65720.0,0.34984816]
[1727426306624,0.459309,65721.0,65720.0,0.16016]
[1727426307654,0.458309,65721.0,65720.0,0.15616]
[1727426307846,0.457309,65721.0,65720.0,0.15216]
[1727426308175,0.459309,65721.0,65720.0,0.16016]
[1727426308559,0.459309,65721.0,65720.0,0.35384816]
[1727426312359,0.459309,65721.0,65720.0,0.45384816]
[1727426312593,0.459309,65721.0,65720.0,0.6091361]
[1727426312823,0.459309,65721.0,65720.0,0.70850741]
[1727426313046,0.459309,65721.0,65720.0,0.70650741]
[1727426313658,0.459309,65721.0,65720.0,0.72950741]
[1727426313900,0.458309,65721.0,65720.0,0.72550741]
[1727426314124,0.457309,65721.0,65720.0,0.72350741]
[1727426314358,0.459309,65721.0,65720.0,0.7314554]
[1727426314598,0.459309,65721.0,65720.0,0.7274554]
[1727426314794,0.458309,65721.0,65720.0,0.7274554]
[1727426315231,0.459309,65721.0,65720.0,0.7314554]
[1727426315441,0.458309,65721.0,65720.0,0.7274554]
[1727426315660,0.459309,65721.0,65720.0,0.7314554]
[1727426315917,0.458309,65721.0,65720.0,0.7274554]
[1727426316127,0.45776918,65721.0,65720.0,0.7274554]
[1727426316344,0.45876918,65721.0,65720.0,0.7374554]
[1727426316807,0.45876918,65721.0,65720.0,0.7354554]
[1727426317472,0.45876918,65721.0,65720.0,0.7163361]
[1727426317900,0.45876918,65721.0,65720.0,0.73547976]
[1727426318442,0.45876918,65721.0,65720.0,0.73747976]
[1727426318784,0.45876918,65721.0,65720.0,0.73547976]
[1727426319207,0.45876918,65721.0,65720.0,0.73548507]
[1727426320669,0.45876918,65721.0,65720.0,0.73548042]
[1727426322499,0.45876918,65721.0,65720.0,1.00666676]
[1727426322713,0.45876918,65721.0,65720.0,0.68101153]
[1727426323857,0.45876918,65721.0,65720.0,0.70475727]
[1727426324083,0.45876918,65721.0,65720.0,0.68175727]
[1727426324307,0.45876918,65721.0,65720.0,0.71640848]
[1727426324923,0.45876918,65721.0,65720.0,0.71840848]
[1727426325370,0.22805884,65735.0,65723.0,0.023]
[1727426325621,0.22805884,65735.0,65734.0,0.44581616]
[1727426326081,0.68443884,65735.0,65734.0,0.44581616]
[1727426326299,0.45638,65735.0,65734.0,0.44581616]
[1727426326753,0.45738,65735.0,65734.0,0.44581616]
[1727426327194,0.45638,65735.0,65734.0,0.44581616]
[1727426327657,0.45738,65735.0,65734.0,0.45281616]
[1727426327891,0.45738,65735.0,65734.0,0.6311041]